bitfinex-derivatives/quotes_SOLF0:USTF0_20250106
["timestamp","ask_amount","ask_price","bid_price","bid_amount"]
[1736166514192,1.5046,217.27,217.21,7.16880734]
[1736166514394,2.66,217.24,217.21,7.16880734]
[1736166514590,1.5046,217.27,217.21,7.16880734]
[1736166514793,2.3023,217.25,217.22,2.3026]
[1736166515292,2.3025,217.24,217.19,9.47160734]
[1736166515488,2.3025,217.24,217.19,7.16880734]
[1736166515688,2.66,217.23,217.19,7.16880734]
[1736166515991,2.66,217.23,217.2,2.3028]
[1736166517092,2.66,217.23,217.21,2.3027]
[1736166518893,2.3025,217.24,217.21,2.3027]
[1736166519194,2.66,217.23,217.21,2.3027]
[1736166520495,2.66,217.23,217.22,5.89]
[1736166521090,9.82880734,217.23,217.07,4.6082]
[1736166521287,7.16880734,217.2,217.14,7.16880734]
[1736166521795,2.3031,217.18,217.12,7.16880734]
[1736166522098,2.66,217.17,217.12,7.16880734]
[1736166523495,2.66,217.17,217.15,2.3033]
[1736166525993,2.66,217.17,217.16,5.1]
[1736166526190,2.66,217.17,217.16,7.4032]
[1736166526692,2.66,217.17,217.16,5.1]
[1736166529403,2.66,217.17,217.16,14.57200734]
[1736166529796,2.66,217.17,217.16,5.1]
[1736166530094,4.9631,217.17,217.16,5.1]
[1736166531696,2.66,217.17,217.16,5.1]
[1736166533093,4.9631,217.17,217.16,5.1]
[1736166536698,12.13190734,217.17,217.16,5.1]
[1736166537099,4.9631,217.17,217.16,5.1]
[1736166537299,2.3034,217.15,217.11,2.3037]
[1736166537901,2.66,217.17,217.09,7.16880734]
[1736166538098,7.16880734,217.15,217.08,7.16880734]
[1736166539501,2.3036,217.13,217.09,2.3039]
[1736166539697,2.66,217.12,217.09,2.3039]
[1736166540002,2.66,217.12,217.1,7.16880734]
[1736166540205,2.66,217.12,217.11,2.3037]
[1736166540404,2.66,217.12,217.07,7.16880734]
[1736166540605,4.9637,217.12,217.08,2.304]
[1736166540903,2.66,217.12,217.08,2.304]
[1736166541100,2.66,217.12,217.05,7.16880734]
[1736166541514,2.3039,217.1,217.06,2.3042]
[1736166543811,7.16880734,217.07,216.95,83.91303097]
[1736166544106,7.16880734,217.02,216.95,91.08183831]
[1736166544307,2.66,217.01,216.95,91.08183831]
[1736166544508,4.9649,217.01,216.97,2.3052]
[1736166544710,7.16880734,217.0,216.93,13.52949342]
[1736166545102,7.16880734,217.0,216.94,2.3055]
[1736166545500,2.66,217.01,216.95,7.16880734]
[1736166546105,2.66,217.01,216.95,9.47420734]
[1736166546106,2.305,216.99,216.95,9.47420734]
[1736166547604,1.4516,217.09,216.91,1.397]
[1736166547605,2.66,217.07,216.97,7.16880734]
[1736166547809,2.66,217.07,217.05,7.16880734]
[1736166548011,2.66,217.07,217.06,2.3043]
[1736166550015,2.3036,217.12,217.05,7.16880734]
[1736166550209,2.66,217.11,217.07,9.47290734]
[1736166551723,2.3036,217.12,217.07,9.47290734]
[1736166551923,2.68,217.11,217.07,9.47290734]
[1736166554324,4.9837,217.11,217.07,9.47290734]
[1736166554523,4.9837,217.11,217.07,7.16880734]
[1736166555525,2.68,217.11,217.07,9.47300734]
[1736166555726,2.68,217.11,217.09,7.16880734]
[1736166557123,2.68,217.11,217.08,2.304]
[1736166557320,9.84880734,217.11,216.94,4.6111]
[1736166557526,9.84880734,217.11,217.03,7.16880734]
[1736166557721,2.3041,217.09,217.04,2.3044]
[1736166557917,9.84880734,217.11,217.04,2.3044]
[1736166559230,2.304,217.09,217.04,2.3044]
[1736166560621,2.3041,217.08,216.91,1.397]
[1736166560829,7.16880734,217.05,216.97,7.16880734]
[1736166561122,2.3047,217.02,216.97,7.16880734]
[1736166561625,7.16880734,217.03,216.97,7.16880734]
[1736166562222,7.16880734,217.01,216.95,7.16880734]
[1736166562729,2.305,217.0,216.96,2.3053]
[1736166563026,2.68,216.99,216.95,7.16880734]
[1736166563528,2.68,216.99,216.97,7.16880734]
[1736166563924,1.4686,217.1,216.97,7.16880734]
[1736166564227,2.3044,217.05,217.01,2.3048]
[1736166564425,2.68,217.04,217.01,2.3048]
[1736166564921,2.68,217.04,217.0,7.16880734]
[1736166565129,2.68,217.04,216.91,1.397]
[1736166565130,2.3046,217.03,216.96,11.21932996]
[1736166565827,2.3046,217.03,216.99,2.3049]
[1736166566129,2.68,217.04,216.96,11.21932996]
[1736166566130,12.68792996,217.1,216.96,11.21932996]
[1736166566320,2.3045,217.04,216.96,11.21932996]
[1736166566628,2.68,217.03,216.96,11.21932996]
[1736166566824,2.68,217.03,217.0,2.3048]
[1736166567027,2.68,217.03,216.96,11.21932996]
[1736166567322,2.68,217.03,216.93,11.21932996]
[1736166567528,2.68,217.03,216.91,1.397]
[1736166568029,1.4564,217.02,216.93,2.3055]
[1736166568223,1.4564,217.02,216.91,1.397]
[1736166568626,2.3052,216.98,216.94,2.3055]
[1736166568822,2.68,216.97,216.94,2.3055]
[1736166569224,2.3056,216.94,216.9,2.306]
[1736166569425,2.68,216.97,216.9,11.21932996]
[1736166569626,1.4564,217.02,216.93,11.21932996]
[1736166569627,2.68,216.99,216.93,11.21932996]
[1736166570030,2.68,216.99,216.98,2.3051]
[1736166574634,2.68,216.99,216.93,11.21932996]
[1736166575327,2.68,216.99,216.94,2.3055]
[1736166575533,4.9851,216.99,216.93,11.21932996]
[1736166576034,2.68,216.99,216.93,11.21932996]
[1736166576628,2.68,216.99,216.97,2.3051]
[1736166577635,2.68,216.99,216.98,2.3051]
[1736166578739,2.68,217.02,216.97,2.3051]
[1736166578933,1.4251,217.08,216.96,11.21932996]
[1736166579135,2.68,217.07,216.97,1.4651]
[1736166579336,2.68,217.07,217.03,2.3045]
[1736166579837,4.9843,217.06,217.02,2.3047]
[1736166581137,4.9843,217.06,216.97,1.4651]
[1736166581331,4.9843,217.06,217.03,2.3046]
[1736166583735,2.68,217.06,216.97,1.4651]
[1736166583938,11.21932996,217.1,216.99,11.21932996]
[1736166583939,2.64,217.05,216.99,11.21932996]
[1736166584841,2.64,217.05,217.04,2.3045]
[1736166586335,2.64,217.05,217.02,2.3047]
[1736166586938,2.3044,217.05,217.02,2.3047]
[1736166587134,2.64,217.04,217.03,2.3046]
[1736166587339,2.64,217.05,217.01,7.17994957]
[1736166588444,2.64,217.05,217.04,2.3044]
[1736166588840,2.3042,217.08,217.01,7.17994957]
[1736166589037,2.64,217.05,217.01,7.17994957]
[1736166589542,2.64,217.06,217.05,2.3044]
[1736166591947,2.64,217.06,217.03,2.3045]
[1736166592148,1.4341,217.17,217.03,2.3045]
[1736166592149,128.34437133,217.23,217.03,7.17994957]
[1736166592346,7.17994957,217.13,217.05,7.17994957]
[1736166592542,12.12354957,217.13,217.09,2.3039]
[1736166594346,2.3036,217.12,217.08,2.304]
[1736166595639,2.3036,217.12,217.09,2.3039]
[1736166595951,2.64,217.12,217.09,2.3039]
[1736166597250,4.9437,217.12,217.08,2.304]
[1736166597452,4.9437,217.12,217.07,7.17994957]
[1736166598050,4.9437,217.12,217.09,2.3039]
[1736166599051,4.9437,217.12,217.07,7.17994957]
[1736166599052,2.3037,217.11,217.08,2.304]
[1736166599254,7.17994957,217.09,216.97,1.4651]
[1736166599454,7.17994957,217.07,217.01,7.17994957]
[1736166599855,9.81994957,217.07,217.01,7.17994957]
[1736166600054,12.12414957,217.07,217.04,2.3045]
[1736166600654,12.12414957,217.07,217.01,7.17994957]
[1736166600847,4.9442,217.07,217.05,2.3044]
[1736166601552,4.9434,217.15,217.05,7.17994957]
[1736166601755,2.64,217.15,217.08,7.17994957]
[1736166601949,2.64,217.15,217.1,7.17994957]
[1736166602653,4.9433,217.15,217.1,7.17994957]
[1736166603255,1.4213,217.16,217.1,7.17994957]
[1736166603562,1.4213,217.16,217.15,2.3033]
[1736166604352,1.4213,217.16,217.14,2.3034]
[1736166604856,1.4213,217.16,217.09,7.17994957]
[1736166604857,8.60124957,217.16,217.09,7.17994957]
[1736166605055,2.3034,217.15,217.11,2.3037]
[1736166605456,2.3035,217.14,217.11,2.3037]
[1736166606059,4.9435,217.14,217.11,2.3037]
[1736166606254,9.81994957,217.14,217.09,2.3039]
[1736166606459,2.3036,217.13,217.09,2.3039]
[1736166607658,2.3036,217.13,217.1,2.3038]
[1736166608062,13.82,217.34,217.11,7.17994957]
[1736166608264,7.17994957,217.2,217.07,2.64]
[1736166608563,9.81994957,217.2,217.12,7.17994957]
[1736166608956,2.303,217.18,217.14,2.3033]
[1736166609258,9.48294957,217.18,217.14,2.3033]
[1736166609463,2.3031,217.17,217.13,2.3035]
[1736166610065,7.17994957,217.18,217.13,2.3035]
[1736166610263,7.17994957,217.16,217.09,7.17994957]
[1736166610568,2.64,217.15,217.11,2.3037]
[1736166611463,9.48334957,217.14,217.11,2.3037]
[1736166613571,2.3034,217.14,217.11,2.3037]
[1736166613862,2.3032,217.16,217.13,2.3034]
[1736166614073,4.003,217.17,217.11,7.17994957]
[1736166614571,4.003,217.17,217.14,2.3033]
[1736166617464,4.003,217.17,217.12,2.3035]
[1736166617664,7.17994957,217.16,217.12,2.3035]
[1736166618060,7.17994957,217.16,217.09,7.17994957]
[1736166618271,7.17994957,217.16,217.04,1.4133]
[1736166618272,9.48324957,217.16,217.13,2.3035]
[1736166618773,6.3061,217.17,217.11,7.17994957]
[1736166618965,3.6861,217.17,217.14,2.3034]
[1736166619169,6.3061,217.17,217.14,2.3034]
[1736166619763,4.003,217.17,217.12,7.17994957]
[1736166620071,17.37720997,217.3,217.14,7.17994957]
[1736166620273,7.17994957,217.2,217.14,7.17994957]
[1736166620571,2.62,217.19,217.14,7.17994957]
[1736166621162,2.62,217.19,217.17,2.303]
[1736166622267,2.62,217.19,217.18,2.303]
[1736166622472,2.62,217.19,217.14,7.17994957]
[1736166622668,2.62,217.19,217.07,2.62]
[1736166622868,2.62,217.19,217.16,2.3031]
[1736166623065,7.17994957,217.2,217.16,2.3031]
[1736166623364,2.62,217.19,217.16,2.3031]
[1736166623963,7.17994957,217.18,217.07,2.62]
[1736166624163,7.17994957,217.18,217.11,7.17994957]
[1736166624567,2.62,217.19,217.13,7.17994957]
[1736166624768,9.79994957,217.19,217.11,7.17994957]
[1736166625375,2.3032,217.17,217.13,2.3035]
[1736166625968,2.3032,217.17,217.14,2.3034]
[1736166631483,2.3032,217.16,217.14,2.3034]
[1736166631985,2.3031,217.18,217.15,2.3033]
[1736166632286,2.62,217.19,217.13,7.17994957]
[1736166632672,2.62,217.19,217.16,2.3031]
[1736166633583,2.62,217.19,217.17,2.303]
[1736166634181,2.3028,217.2,217.17,2.303]
[1736166634384,4.9228,217.2,217.17,2.303]
[1736166635888,7.17994957,217.19,217.05,7.2286]
[1736166636186,2.3032,217.17,217.13,2.3034]
[1736166636386,2.62,217.18,217.13,2.3034]
[1736166636685,2.3033,217.16,217.13,2.3034]
[1736166637483,2.62,217.18,217.12,9.48354957]
[1736166637484,2.3033,217.15,217.12,9.48354957]
[1736166641683,2.3032,217.16,217.13,2.3035]
[1736166642891,2.62,217.18,217.05,7.2286]
[1736166643095,2.3033,217.15,217.12,2.3036]
[1736166647907,7.17994957,217.15,217.04,1.4133]
[1736166648104,2.62,217.18,217.03,13.54063565]
[1736166648105,7.17994957,217.11,217.03,13.54063565]
[1736166648305,7.17994957,217.09,217.03,13.54063565]
[1736166648499,9.83994957,217.09,217.03,13.54063565]
[1736166648906,2.3043,217.07,217.03,9.48454957]
[1736166649103,9.83994957,217.09,217.03,9.48454957]
[1736166649512,2.3043,217.06,217.03,9.48454957]
[1736166649809,9.83994957,217.16,217.05,7.17994957]
[1736166650006,9.83994957,217.16,217.09,7.17994957]
[1736166650207,2.3035,217.14,217.09,7.17994957]
[1736166651016,2.3035,217.14,217.1,2.3038]
[1736166656318,2.3035,217.14,217.11,2.3037]
[1736166659622,9.83994957,217.16,217.11,2.3037]
[1736166659823,2.3033,217.15,217.11,2.3037]
[1736166660614,2.3034,217.14,217.11,2.3037]
[1736166661019,7.17994957,217.14,217.04,1.5127]
[1736166661214,2.3039,217.1,217.06,7.17994957]
[1736166662626,2.3039,217.1,217.07,2.3041]
[1736166662823,7.17994957,217.1,217.02,40.53191228]
[1736166663021,7.17994957,217.08,217.02,40.53191228]
[1736166663921,9.48434957,217.06,217.02,42.83661228]
[1736166664129,2.66,217.05,217.02,42.83661228]
[1736166664625,2.66,217.05,217.03,2.3046]
[1736166664827,2.66,217.05,216.99,3.6342748]
[1736166665229,2.66,217.05,216.98,7.17994957]
[1736166665729,2.3047,217.03,216.99,2.3049]
[1736166666122,2.66,217.05,216.98,7.17994957]
[1736166666325,2.3048,217.02,216.98,9.48504957]
[1736166667127,2.3048,217.02,216.98,7.17994957]
[1736166667324,2.3048,217.02,216.99,2.305]
[1736166668927,2.66,217.05,216.98,7.17994957]
[1736166669127,2.3046,217.03,217.0,2.3048]
[1736166669427,2.66,217.04,216.97,1.4028]
[1736166669630,4.9645,217.05,217.03,7.17994957]
[1736166670529,4.9645,217.05,217.01,7.17994957]
[1736166672030,2.66,217.05,217.02,2.3047]
[1736166673427,2.66,217.05,217.03,2.3046]
[1736166674727,9.83994957,217.05,216.97,1.4028]
[1736166675031,9.83994957,217.05,216.98,7.17994957]
[1736166675226,2.3047,217.03,216.99,2.3049]
[1736166676234,9.83994957,217.05,216.99,2.3049]
[1736166676235,2.3047,217.02,216.99,2.3049]
[1736166677331,9.83994957,217.05,216.98,7.17994957]
[1736166677536,2.3046,217.03,217.0,2.3049]
[1736166677733,9.83994957,217.05,216.98,7.17994957]
[1736166677933,7.17994957,217.05,216.98,7.17994957]
[1736166678235,2.3048,217.02,216.98,9.48494957]
[1736166679431,2.3048,217.02,216.99,2.305]
[1736166680536,2.3046,217.03,217.0,2.3049]
[1736166682238,2.3047,217.02,216.99,2.305]
[1736166684539,7.17994957,217.01,216.79,134.15008836]
[1736166684837,7.17994957,216.97,216.85,1.4044]
[1736166685041,2.62,216.96,216.89,7.17994957]
[1736166685242,2.3055,216.95,216.91,2.3058]
[1736166685438,2.62,216.96,216.91,2.3058]
[1736166686541,2.3056,216.94,216.91,2.3058]
[1736166687140,2.3055,216.95,216.92,5.57]
[1736166687937,2.62,216.96,216.92,5.57]
[1736166688139,7.17994957,216.93,216.69,56.09015105]
[1736166688345,7.17994957,216.88,216.8,7.17994957]
[1736166688541,2.3069,216.82,216.76,2.3074]
[1736166688741,2.62,216.81,216.78,7.17994957]
[1736166688935,2.62,216.81,216.8,7.17994957]
[1736166689140,9.48634957,216.87,216.81,2.3069]
[1736166689448,2.62,216.86,216.84,7.17994957]
[1736166689648,2.62,216.85,216.84,7.17994957]
[1736166689847,2.62,216.86,216.85,2.3065]
[1736166690149,2.62,216.86,216.85,7.17994957]
[1736166690540,2.62,216.86,216.85,9.48644957]
[1736166692050,2.62,216.86,216.85,7.17994957]
[1736166693250,2.62,216.86,216.84,7.17994957]
[1736166693550,2.62,216.85,216.84,9.48654957]
[1736166694844,2.3059,216.91,216.86,2.3063]
[1736166695050,2.62,216.91,216.9,7.17994957]
[1736166695247,3.0171,216.97,216.9,7.17994957]
[1736166695447,2.62,216.96,216.92,9.48564957]
[1736166696445,4.9254,216.96,216.92,7.17994957]
[1736166696651,4.9254,216.96,216.91,2.3059]
[1736166697052,2.3054,216.95,216.91,2.3059]
[1736166697248,9.79994957,216.96,216.82,1.3764]
[1736166697443,2.3056,216.94,216.88,7.17994957]
[1736166697643,9.79994957,216.96,216.88,7.17994957]
[1736166697952,7.17994957,216.94,216.86,7.17994957]
[1736166698255,2.3059,216.92,216.86,7.17994957]
[1736166698552,2.62,216.91,216.87,2.3063]
[1736166699250,4.926,216.91,216.86,7.17994957]
[1736166699446,2.62,216.91,216.86,9.48634957]
[1736166699648,2.62,216.91,216.82,1.3764]
[1736166699853,7.17994957,216.9,216.83,7.17994957]
[1736166700649,7.17994957,216.88,216.83,7.17994957]
[1736166701458,2.3062,216.88,216.84,2.3066]
[1736166702956,7.17994957,216.9,216.83,7.17994957]
[1736166703153,7.17994957,216.92,216.85,7.17994957]
[1736166703354,2.62,216.91,216.85,7.17994957]
[1736166704456,2.62,216.91,216.88,2.3062]
[1736166706856,2.62,216.91,216.87,7.17994957]
[1736166708068,3.0171,216.97,216.89,2.306]
[1736166708268,3.0171,216.97,216.89,7.17994957]
[1736166708269,2.3054,216.95,216.89,7.17994957]
[1736166708467,2.62,216.96,216.91,7.17994957]
[1736166708660,2.62,216.96,216.92,2.3057]
[1736166709067,2.62,216.97,216.93,7.17994957]
[1736166709369,2.62,216.97,216.95,7.17994957]
[1736166710174,2.62,216.97,216.86,4.3348]
[1736166710367,2.62,216.97,216.95,7.17994957]
[1736166710568,2.62,216.97,216.96,2.3052]
[1736166710970,2.62,216.97,216.95,7.17994957]
[1736166710971,1.5172,217.03,216.91,11.22353681]
[1736166711267,2.62,217.02,216.91,11.22353681]
[1736166712175,2.3051,216.99,216.91,11.22353681]
[1736166712675,2.62,217.02,216.91,11.22353681]
[1736166712972,11.22353681,217.0,216.92,2.3057]
[1736166714573,2.3053,216.96,216.92,2.3057]
[1736166714775,2.62,216.95,216.92,2.3057]
[1736166722475,2.62,216.95,216.93,2.3056]
[1736166722781,4.9254,216.95,216.86,4.3348]
[1736166723784,4.9254,216.95,216.92,2.3057]
[1736166723979,4.9254,216.95,216.86,4.3348]
[1736166725483,11.22353681,216.94,216.86,1.4106]
[1736166725982,2.3062,216.88,216.83,42.95443364]
[1736166726576,2.3062,216.88,216.85,2.3064]
[1736166726883,2.62,216.89,216.83,42.95443364]
[1736166727282,2.62,216.89,216.87,2.3063]
[1736166728582,2.62,216.89,216.83,42.95443364]
[1736166728788,2.62,216.89,216.88,2.3062]
[1736166735590,2.6,216.95,216.94,2.3055]
[1736166735792,2.3053,216.97,216.94,2.3055]
[1736166736092,2.6,216.95,216.94,2.3055]
[1736166736292,2.6,216.95,216.93,2.3056]
[1736166736794,2.6,216.95,216.89,7.18935489]
[1736166737892,7.18935489,216.94,216.83,42.95443364]
[1736166738091,7.18935489,216.94,216.86,7.18935489]
[1736166738492,2.3057,216.93,216.86,7.18935489]
[1736166739891,2.3057,216.93,216.89,2.306]
[1736166740293,7.18935489,216.94,216.89,2.306]
[1736166740493,2.3058,216.92,216.89,2.306]
[1736166740693,9.49515489,216.92,216.89,2.306]
[1736166742294,9.49515489,216.92,216.9,2.3059]
[1736166743192,2.3058,216.92,216.9,2.3059]
[1736166743590,7.18935489,216.94,216.9,2.3059]
[1736166743790,2.6,216.95,216.88,7.18935489]
[1736166743992,2.6,216.94,216.88,7.18935489]
[1736166744290,2.6,216.94,216.89,2.306]
[1736166744490,2.6,216.94,216.88,7.18935489]
[1736166745094,2.3054,216.96,216.88,7.18935489]
[1736166745290,2.6,216.94,216.88,7.18935489]
[1736166746989,2.3054,216.96,216.88,7.18935489]
[1736166747189,2.6,216.95,216.88,7.18935489]
[1736166748495,2.6,216.95,216.92,2.3057]
[1736166749092,4.9055,216.95,216.92,2.3057]
[1736166751395,3.45983875,217.0,216.9,7.18935489]
[1736166751602,9.78935489,216.99,216.92,7.18935489]
[1736166751991,2.3052,216.98,216.94,2.3055]
[1736166752394,9.78935489,216.99,216.94,2.3055]
[1736166752904,2.3053,216.97,216.94,2.3055]
[1736166754308,9.49465489,216.97,216.94,2.3055]
[1736166759608,2.3054,216.96,216.93,2.3056]
[1736166761908,2.6,216.95,216.93,2.3056]
[1736166765815,128.34437133,217.08,216.93,7.18935489]
[1736166766018,2.3048,217.02,216.98,2.305]
[1736166766709,2.3048,217.02,216.99,2.305]
[1736166767409,9.49415489,217.02,216.99,2.305]
[1736166767615,2.3048,217.01,216.97,2.3051]
[1736166767812,2.3048,217.01,216.95,7.18935489]
[1736166769218,7.18935489,217.02,216.95,7.18935489]
[1736166770117,2.3048,217.01,216.98,2.3051]
[1736166774224,7.18935489,217.02,216.95,7.18935489]
[1736166774421,2.3047,217.02,216.99,2.305]
[1736166774922,2.3048,217.01,216.99,2.305]
[1736166775523,2.3049,217.0,216.97,2.3051]
[1736166777227,2.3049,217.0,216.98,2.3051]
[1736166777421,9.76935489,217.03,216.98,2.3051]
[1736166777724,2.3048,217.01,216.98,2.3051]
[1736166781325,2.58,217.03,216.99,2.305]
[1736166782334,9.76935489,217.03,216.99,2.305]
[1736166782536,12.07405489,217.03,216.99,2.305]
[1736166782937,7.18935489,217.01,216.94,2.3055]
[1736166783234,2.3052,216.97,216.94,2.3055]
[1736166783732,9.76935489,216.98,216.94,2.3055]
[1736166783925,12.07445489,216.98,216.94,2.3055]
[1736166784734,2.3049,217.0,216.94,7.18935489]
[1736166784929,9.76935489,217.02,216.94,7.18935489]
[1736166786131,9.76935489,217.02,216.91,1.4481]
[1736166786329,7.18935489,216.94,216.86,7.18935489]
[1736166786529,9.76935489,216.94,216.86,7.18935489]
[1736166786931,2.58,216.94,216.88,7.18935489]
[1736166788435,2.58,216.94,216.9,2.3059]
[1736166788833,3.45891035,217.02,216.9,7.18935489]
[1736166789035,2.305,216.99,216.92,7.18935489]
[1736166789333,2.58,216.98,216.92,7.18935489]
[1736166789934,4.8851,216.98,216.92,7.18935489]
[1736166791531,4.8851,216.98,216.94,2.3055]
[1736166791936,12.07445489,216.98,216.94,2.3055]
[1736166792339,2.3052,216.97,216.94,2.3055]
[1736166794440,4.8851,216.98,216.95,2.3054]
[1736166796344,2.58,216.98,216.92,7.18935489]
[1736166796542,2.58,216.98,216.96,2.3052]
[1736166797346,2.58,216.98,216.97,2.3052]
[1736166797854,2.6,217.01,216.96,7.18935489]
[1736166798346,4.9048,217.01,216.96,7.18935489]
[1736166798547,2.6,217.01,216.96,7.18935489]
[1736166798743,2.6,217.01,216.97,2.3052]
[1736166798948,2.3049,217.0,216.97,2.3052]
[1736166801752,3.45913048,217.05,216.96,7.18935489]
[1736166801945,7.18935489,217.18,217.03,7.18935489]
[1736166802145,7.18935489,217.18,217.1,7.18935489]
[1736166802348,2.3032,217.16,217.11,2.3037]
[1736166803256,2.3032,217.16,217.12,7.18935489]
[1736166803549,2.3031,217.18,217.12,7.18935489]
[1736166803756,4.9031,217.18,217.12,7.18935489]
[1736166804146,2.3031,217.17,217.12,9.49285489]
[1736166804350,2.3031,217.17,217.12,7.18935489]
[1736166804757,2.3033,217.16,217.12,7.18935489]
[1736166807752,9.78935489,217.18,217.12,7.18935489]
[1736166807961,2.3033,217.15,217.12,7.18935489]
[1736166810863,2.3033,217.15,217.11,2.3037]
[1736166811062,2.3033,217.15,217.12,7.18935489]
[1736166812860,2.6,217.18,217.14,7.18935489]
[1736166813063,2.3032,217.16,217.14,7.18935489]
[1736166813869,1.4095,217.22,217.14,7.18935489]
[1736166814067,2.3029,217.2,217.16,7.18935489]
[1736166814866,1.5185,217.27,217.08,2.8768]
[1736166814867,1.5185,217.27,217.18,7.18935489]
[1736166815065,2.6,217.26,217.15,2.3033]
[1736166815267,7.18935489,217.25,217.19,7.18935489]
[1736166816369,2.6,217.26,217.21,7.18935489]
[1736166816572,52.74,217.32,217.23,7.18935489]
[1736166816772,3.33747493,217.31,217.23,7.18935489]
[1736166816972,2.6,217.3,217.25,7.18935489]
[1736166818276,2.302,217.28,217.25,7.18935489]
[1736166818476,9.78935489,217.3,217.18,1.509]
[1736166818676,9.78935489,217.3,217.23,7.18935489]
[1736166818975,2.3021,217.27,217.23,7.18935489]
[1736166819570,1.4468,217.32,217.25,7.18935489]
[1736166819777,4.0468,217.32,217.27,7.18935489]
[1736166820471,2.3019,217.29,217.27,7.18935489]
[1736166820776,11.23615489,217.32,217.19,2.9023]
[1736166820970,11.23615489,217.32,217.24,7.18935489]
[1736166821171,2.3022,217.26,217.24,7.18935489]
[1736166822071,7.18935489,217.28,217.18,1.509]
[1736166822277,7.18935489,217.28,217.2,7.18935489]
[1736166822278,2.6,217.27,217.2,7.18935489]
[1736166822977,7.18935489,217.26,217.2,7.18935489]
[1736166823179,7.18935489,217.24,217.18,7.18935489]
[1736166823977,2.3026,217.22,217.18,7.18935489]
[1736166824574,2.3029,217.2,217.15,2.3033]
[1736166824775,2.3029,217.2,217.16,7.18935489]
[1736166825180,2.6,217.21,217.15,7.18935489]
[1736166825382,2.6,217.21,217.13,44.89434025]
[1736166825576,2.6,217.21,217.15,7.18935489]
[1736166825977,2.303,217.18,217.15,7.18935489]
[1736166826178,2.6,217.21,217.17,7.18935489]
[1736166827082,4.9028,217.21,217.17,7.18935489]
[1736166828476,2.3028,217.2,217.17,7.18935489]
[1736166829973,2.6,217.21,217.17,7.18935489]
[1736166830181,2.303,217.18,217.16,7.18935489]
[1736166830481,2.6,217.21,217.16,7.18935489]
[1736166831078,2.3031,217.18,217.16,7.18935489]
[1736166831877,2.6,217.21,217.13,42.59094025]
[1736166832080,2.3031,217.17,217.08,1.3816]
[1736166832282,2.3031,217.17,217.15,7.18935489]
[1736166833580,4.903,217.19,217.15,7.18935489]
[1736166833879,2.6,217.18,217.15,7.18935489]
[1736166834884,2.6,217.18,217.13,2.3034]
[1736166835183,2.6,217.18,217.15,7.18935489]
[1736166835184,2.3031,217.17,217.15,7.18935489]
[1736166836089,2.3031,217.17,217.08,1.3816]
[1736166836090,2.3037,217.11,217.08,1.3816]
[1736166836384,2.6,217.12,217.09,7.18935489]
[1736166836577,2.6,217.11,217.09,7.18935489]
[1736166836975,2.3038,217.1,217.09,7.18935489]
[1736166837180,2.6,217.11,217.09,7.18935489]
[1736166837475,2.6,217.11,217.07,7.18935489]
[1736166838377,2.6,217.11,217.09,7.18935489]
[1736166839580,4.9038,217.11,217.09,7.18935489]
[1736166840382,2.6,217.12,217.09,7.18935489]
[1736166840583,2.6,217.12,217.11,7.18935489]
[1736166840983,2.6,217.12,217.11,9.49305489]
[1736166841186,2.6,217.12,217.01,4.1025]
[1736166841386,2.6,217.12,217.11,7.18935489]
[1736166843491,4.9036,217.12,217.11,7.18935489]
[1736166844887,4.9036,217.12,217.09,9.49325489]
[1736166845294,4.9036,217.12,217.09,7.18935489]
[1736166846190,7.18935489,217.11,217.04,2.3045]
[1736166846597,2.6,217.12,217.05,7.18935489]
[1736166846994,2.3039,217.1,217.06,2.3042]
[1736166847496,7.18935489,217.11,217.06,2.3042]